bitfinex/quotes_ETHUSD_20240715
["timestamp","ask_amount","ask_price","bid_price","bid_amount"]
[1721073498895,0.587226,3405.8,3405.1,2.93676]
[1721073499590,0.30633589,3406.0,3405.4,2.9365]
[1721073499762,2.93489,3407.3,3404.6,2.2794]
[1721073499763,2.9355,3406.6,3405.8,2.93615]
[1721073499952,2.93523,3406.9,3405.8,2.93615]
[1721073499953,3.39565292,3406.9,3405.8,2.93615]
[1721073500149,0.3063211,3406.2,3406.0,2.93597]
[1721073500466,2.93523,3406.9,3405.8,2.93613]
[1721073500667,0.3063156,3406.6,3405.7,40.28574]
[1721073501764,0.3063156,3406.6,3406.0,2.93598]
[1721073501993,2.93556,3406.5,3405.7,35.0]
[1721073502163,0.3063156,3406.6,3405.7,35.0]
[1721073502363,0.3063156,3406.6,3405.8,2.93616]
[1721073502672,3.2418056,3406.6,3405.8,2.93616]
[1721073502874,0.38447286,3406.5,3405.8,2.93616]
[1721073503073,0.3063156,3406.6,3406.1,2.93588]
[1721073504205,0.3063156,3406.6,3406.2,2.93581]
[1721073504397,0.3063156,3406.6,3406.3,2.93572]
[1721073504756,0.3063156,3406.6,3406.1,2.93583]
[1721073504955,0.602923,3406.8,3406.1,2.93583]
[1721073505184,0.3538073,3406.7,3406.1,2.93583]
[1721073505384,0.3538073,3406.7,3406.1,2.93588]
[1721073505582,0.3538073,3406.7,3406.2,2.9358]
[1721073505772,0.602923,3406.8,3406.0,2.93594]
[1721073506253,0.602923,3406.8,3406.2,2.93581]
[1721073506458,0.30629258,3407.0,3406.3,2.47291076]
[1721073506681,0.30629258,3407.0,3406.9,2.93521]
[1721073506895,2.403,3408.1,3406.4,2.93558]
[1721073506896,2.93436,3407.9,3406.4,2.93558]
[1721073507112,3.24066325,3407.9,3406.4,2.93558]
[1721073507287,3.24066325,3407.9,3406.9,2.93514]
[1721073507477,0.85778533,3407.8,3406.9,2.93514]
[1721073507672,0.85778533,3407.8,3407.0,2.93511]
[1721073508010,0.85778533,3407.8,3407.1,0.05869387]
[1721073508295,0.85778533,3407.8,3406.4,2.93558]
[1721073508506,2.93419,3408.1,3407.3,2.93479]
[1721073508859,3.24022594,3408.4,3407.4,0.05868924]
[1721073509054,3.24022594,3408.4,3407.5,2.93469]
[1721073509055,2.93408,3408.3,3407.5,2.93469]
[1721073509293,2.93413,3408.2,3407.5,2.93469]
[1721073509885,2.93413,3408.2,3407.3,2.93479]
[1721073510086,3.55161459,3408.1,3407.3,2.93479]
[1721073511073,3.55161459,3408.1,3406.8,35.0]
[1721073511297,3.55161459,3408.1,3407.3,2.93481]
[1721073511708,2.93435,3407.9,3406.5,3.0]
[1721073511912,2.93435,3407.9,3406.3,5.34985]
[1721073511913,0.64859646,3407.8,3407.1,2.93504]
[1721073512212,2.93403,3408.3,3407.1,2.93504]
[1721073512509,3.24022594,3408.4,3407.4,2.93471]
[1721073512713,2.93402,3408.3,3407.4,2.93471]
[1721073513015,2.93402,3408.3,3407.3,2.93487]
[1721073513016,2.93428,3408.0,3407.3,2.93487]
[1721073514035,2.93428,3408.0,3407.2,2.3477]
[1721073514218,0.586838,3407.9,3407.2,5.28262]
[1721073514555,3.521208,3407.9,3407.2,2.3477]
[1721073514732,3.521208,3407.9,3406.9,2.93521]
[1721073514924,0.586838,3407.9,3407.2,2.93495]
[1721073515117,2.93433,3408.0,3407.2,2.93495]
[1721073515617,2.9341,3408.2,3407.0,2.93509]
[1721073515826,2.93437,3407.9,3407.0,2.93509]
[1721073516021,2.9341,3408.2,3407.0,2.93513]
[1721073516524,2.93437,3407.9,3407.0,2.93513]
[1721073516843,2.93523,3406.9,3405.9,2.93605]
[1721073517197,2.93518,3407.0,3406.1,2.9359]
[1721073517547,6.02866,3407.6,3406.1,2.9359]
[1721073517910,2.93528,3406.9,3406.1,2.9359]
[1721073518113,2.93504,3407.1,3406.2,2.93581]
[1721073518346,2.93522,3406.9,3406.2,2.93581]
[1721073518667,2.93522,3406.9,3406.1,2.9359]
[1721073519941,2.93504,3407.1,3406.1,2.9359]
[1721073520262,2.93455,3407.7,3406.8,2.93528]
[1721073520448,2.93455,3407.7,3406.9,2.93521]
[1721073520650,2.93436,3407.9,3406.6,5.31555]
[1721073520651,2.93436,3407.9,3406.6,2.3801]
[1721073520904,2.93419,3408.1,3407.1,2.93503]
[1721073521107,2.93419,3408.1,3407.3,2.93486]
[1721073521394,2.93427,3408.0,3407.3,2.93486]
[1721073522472,2.93452,3407.8,3406.7,37.93533]
[1721073522659,3.521098,3408.0,3407.0,2.93512]
[1721073522858,3.521098,3408.0,3407.2,2.93489]
[1721073523055,0.586828,3408.0,3407.3,2.93484]
[1721073523283,2.93419,3408.1,3407.3,2.93484]
[1721073523812,3.24055069,3408.0,3407.0,2.93511]
[1721073524167,3.24055069,3408.0,3407.2,2.93489]
[1721073524369,2.93437,3407.9,3407.2,2.93489]
[1721073524764,2.93471,3407.5,3406.7,3.377]
[1721073524969,2.9344,3407.9,3407.1,2.93503]
[1721073525171,0.30627069,3408.0,3407.1,2.93503]
[1721073525400,0.30627069,3408.0,3407.3,2.93486]
[1721073525815,3.24054069,3408.0,3407.3,2.93486]
[1721073525985,3.24054069,3408.0,3407.2,2.93489]
[1721073526507,2.93439,3407.9,3406.9,2.93515]
[1721073526806,2.93439,3407.9,3407.1,2.93501]
[1721073527686,2.93437,3407.9,3407.1,2.93501]
[1721073528289,2.93437,3407.9,3407.1,2.93504]
[1721073528887,0.92373576,3408.0,3407.2,2.93496]
[1721073528888,0.30627069,3408.0,3407.2,2.93496]
[1721073529140,0.30627069,3408.0,3407.3,3.228346]
[1721073529492,3.24054069,3408.0,3407.3,3.228346]
[1721073530536,0.30627069,3408.0,3407.3,3.228346]
[1721073530690,0.30627069,3408.0,3407.4,2.93477]
[1721073530889,0.30627069,3408.0,3407.3,0.293496]
[1721073531090,0.30627069,3408.0,3407.3,3.228336]
[1721073531316,0.30627069,3408.0,3407.4,0.3228336]
[1721073532425,0.30627069,3408.0,3406.9,2.93521]
[1721073532642,2.93441,3407.9,3407.1,2.93498]
[1721073533821,2.93461,3407.6,3406.7,38.81108]
[1721073534022,2.93461,3407.6,3406.7,3.81108]
[1721073534554,2.93445,3407.8,3406.9,2.93521]
[1721073534734,2.93453,3407.7,3406.9,2.93521]
[1721073535239,5.31816,3408.3,3406.9,2.93521]
[1721073535240,2.93436,3407.9,3406.9,2.93521]
[1721073535834,2.93444,3407.8,3407.1,2.93504]
[1721073536143,2.93444,3407.8,3407.1,2.93496]
[1721073536431,2.3841,3408.3,3406.9,2.93516]
[1721073536432,2.93453,3407.7,3406.9,2.93516]
[1721073537220,2.93453,3407.7,3406.8,0.381108]
[1721073537407,2.3841,3408.3,3406.6,2.93547]
[1721073537408,2.93483,3407.4,3406.6,2.93547]
[1721073537727,2.93454,3407.7,3406.8,2.93523]
[1721073537942,0.30635862,3408.6,3407.3,2.93481]
[1721073538236,0.30635862,3408.6,3407.4,2.99342644]
[1721073538431,0.30635862,3408.6,3408.0,2.93421]
[1721073538610,0.30635862,3408.6,3408.1,2.93418]
[1721073539018,0.30635862,3408.6,3408.1,35.0]
[1721073540122,0.30635862,3408.6,3408.1,37.93417]
[1721073540325,0.30635862,3408.6,3408.1,37.91736562]
[1721073541305,0.30635862,3408.6,3408.2,2.93409]
[1721073541544,0.30635862,3408.6,3408.1,37.91736562]
[1721073541545,0.30635862,3408.6,3407.8,2.93438]
[1721073541711,0.30635862,3408.6,3408.1,2.93417]
[1721073542047,0.30635862,3408.6,3408.3,35.0]
[1721073543555,0.30635862,3408.6,3408.0,2.93423]
[1721073543762,0.30635862,3408.6,3408.1,2.93415]
[1721073544803,0.30635862,3408.6,3408.2,2.93409]
[1721073545260,0.30635862,3408.6,3408.0,2.93426]
[1721073545549,0.63034748,3408.6,3408.0,2.93426]
[1721073545714,0.30635862,3408.6,3408.1,2.93415]
[1721073546261,0.30635862,3408.6,3408.1,2.4987]
[1721073546544,0.46008378,3409.8,3409.4,2.93299]
[1721073546743,2.4817,3410.1,3409.5,2.9329]
[1721073547051,2.4817,3410.1,3408.8,1.52996554]
[1721073547220,2.4817,3410.1,3408.9,3.48493519]
[1721073547221,2.93265,3409.9,3408.9,3.48493519]
[1721073547410,5.41416,3410.1,3409.1,2.93324]
[1721073547411,2.93255,3410.0,3409.1,2.93324]
[1721073547756,10.23201,3410.7,3409.5,2.93291]
[1721073547757,2.93214,3410.5,3409.5,2.93291]
[1721073547904,2.4817,3410.6,3409.8,2.93272]
[1721073548518,2.4817,3410.6,3409.9,2.93263]
[1721073548724,7.3,3410.7,3410.0,2.93253]
[1721073549330,10.23197,3410.7,3409.5,2.93296]
[1721073549530,10.23197,3410.7,3409.2,3.377]
[1721073549531,2.93209,3410.6,3409.8,2.93271]
[1721073549827,2.93209,3410.6,3409.6,2.93283]
[1721073549828,2.93209,3410.6,3409.7,2.9328]
[1721073550034,10.23197,3410.7,3409.2,3.377]
[1721073550035,7.3,3410.7,3409.5,2.3352]
[1721073550345,10.23196,3410.7,3410.0,2.93253]
[1721073550709,7.3,3410.7,3410.0,2.93253]
[1721073550912,2.2897,3411.1,3410.2,2.93236]
[1721073550913,5.22132,3411.1,3410.2,2.93236]
[1721073551229,2.9319,3410.8,3409.6,0.23352]
[1721073551431,2.9319,3410.8,3409.8,2.93265]
[1721073551646,5.22132,3411.1,3409.9,0.616617]
[1721073551808,5.22132,3411.1,3410.3,2.93226]
[1721073552149,2.93145,3411.3,3408.8,2.93357]
[1721073552150,2.93282,3409.7,3408.8,2.93357]
[1721073552314,2.93282,3409.7,3408.6,2.4063]
[1721073552315,5.31738,3410.1,3408.6,2.4063]
[1721073552515,3.646638,3410.1,3409.1,2.93325]
[1721073552849,2.93266,3409.9,3409.0,2.9334]
[1721073553154,3.45580045,3410.7,3408.7,0.24063]
[1721073553354,3.45580045,3410.7,3409.7,2.9328]
[1721073553355,2.8448409,3410.7,3409.7,2.9328]
[1721073553568,5.31692,3410.7,3409.8,2.93271]
[1721073553714,2.3849,3411.4,3409.9,38.586558]
[1721073554050,2.3849,3411.4,3410.4,2.93213]
[1721073554266,2.93144,3411.3,3410.4,2.93213]
[1721073554553,2.93171,3411.0,3410.1,2.93242]
[1721073554878,2.93114,3411.7,3410.8,2.93185]
[1721073554879,2.93116,3411.7,3410.8,2.93185]
[1721073555027,2.93116,3411.7,3410.3,2.93226]
[1721073555028,2.93117,3411.6,3410.9,2.93176]
[1721073555230,1.30262697,3411.7,3410.9,2.93176]
[1721073555527,4.23372697,3411.7,3410.9,2.93176]
[1721073555756,2.9311,3411.7,3410.9,2.93176]
[1721073556125,2.93119,3411.6,3410.7,2.93194]
[1721073556328,2.93127,3411.5,3410.7,2.93194]
[1721073556650,2.93141,3411.4,3410.4,2.93218]
[1721073556853,2.93141,3411.4,3410.3,2.4663]
[1721073556854,2.93144,3411.3,3410.3,2.4663]
[1721073557065,2.93135,3411.4,3410.4,0.539871]
[1721073557226,7.3,3412.2,3410.4,0.539871]
[1721073557227,2.931,3411.8,3410.4,0.539871]
[1721073557437,2.931,3411.8,3410.9,2.93177]
[1721073557438,2.93101,3411.8,3410.9,2.93177]
[1721073557752,2.93111,3411.7,3410.8,2.93185]
[1721073558249,2.93111,3411.7,3410.6,2.93202]
[1721073558250,2.93127,3411.5,3410.6,2.93202]
[1721073558659,0.586238,3411.5,3410.5,2.93212]
[1721073558956,2.93118,3411.6,3410.5,2.93212]
[1721073559367,5.5799,3411.9,3410.5,2.93212]
[1721073559523,2.9312,3411.6,3410.6,2.93201]
[1721073559717,2.93109,3411.7,3410.5,2.9321]
[1721073560030,2.93109,3411.7,3410.9,2.93176]
[1721073560220,2.93119,3411.6,3410.7,2.93192]
[1721073560456,2.93126,3411.5,3410.6,2.93203]
[1721073561316,2.93126,3411.5,3410.7,2.93192]
[1721073561521,0.835083,3411.7,3410.7,2.93192]
[1721073561757,2.93123,3411.6,3410.8,2.93185]
[1721073562129,2.93123,3411.6,3410.6,2.93198]
[1721073562130,3.8498513,3411.6,3410.6,2.93198]
[1721073562346,3.8498513,3411.6,3410.2,3.0]
[1721073562347,2.93136,3411.4,3410.2,3.0]
[1721073562554,2.93161,3411.1,3410.2,2.93231]
[1721073562945,2.93136,3411.4,3410.4,2.9322]
[1721073563648,0.55,3411.5,3409.8,2.93266]
[1721073563853,0.55,3411.5,3410.5,2.93212]
[1721073563854,4.23034113,3411.5,3410.5,2.93212]
[1721073564181,2.93153,3411.2,3410.4,2.9322]
[1721073564391,2.93153,3411.2,3410.0,0.8958918]
[1721073564392,2.93139,3411.4,3410.5,2.9321]
[1721073564751,2.9311,3411.7,3410.8,2.93185]
[1721073564947,3.0,3411.8,3411.0,2.93168]
[1721073564948,2.931,3411.8,3411.0,2.93168]
[1721073565259,2.9311,3411.7,3411.0,2.93168]
[1721073565464,0.586183,3411.8,3411.0,2.93168]
[1721073565649,3.0,3411.9,3411.0,2.93168]
[1721073566168,3.0,3411.9,3410.8,2.93185]
[1721073566169,2.93101,3411.8,3410.8,2.93185]
[1721073566486,10.391,3412.2,3411.2,2.9315]
[1721073566487,10.23066,3412.2,3411.2,2.9315]
[1721073566799,5.93077,3412.1,3411.2,2.9315]
[1721073566955,5.84819562,3412.0,3411.2,2.9315]
[1721073567298,10.23066,3412.2,3411.3,2.93137]
[1721073567299,7.3,3412.2,3411.3,2.93137]
[1721073567461,7.3,3412.2,3411.5,2.93125]
[1721073567796,2.93041,3412.5,3411.7,2.93107]
[1721073567952,2.93041,3412.5,3411.5,2.93122]
[1721073568158,2.93058,3412.3,3411.6,2.93116]
[1721073568461,2.93041,3412.5,3411.6,2.93116]
[1721073568680,4.555574,3412.5,3411.6,2.93116]
[1721073568997,2.93049,3412.4,3411.6,2.93116]
[1721073569503,7.3,3412.7,3411.3,3.377]
[1721073569654,3.0,3412.6,3412.0,2.93081]
[1721073570200,7.3,3412.7,3411.9,2.9309]
[1721073570494,2.93033,3412.6,3411.9,2.9309]
[1721073570661,2.93033,3412.6,3411.8,2.93099]
[1721073571253,2.93033,3412.6,3411.1,40.93155]
[1721073571254,2.93033,3412.6,3411.7,2.93103]
[1721073571453,2.9304,3412.5,3411.7,2.93103]
[1721073572075,2.9304,3412.5,3411.8,2.931]
[1721073572456,8.322998,3412.7,3411.8,2.931]
[1721073572457,2.93032,3412.6,3411.8,2.931]
[1721073572687,2.93042,3412.5,3411.5,2.93121]
[1721073572853,4.3486678,3412.6,3411.5,2.93121]
[1721073573074,7.3,3412.7,3412.0,2.93083]
[1721073573277,7.3,3412.7,3411.8,2.93098]
[1721073573581,10.2303,3412.7,3411.9,2.93085]
[1721073573996,5.8705,3412.6,3410.9,2.93177]
[1721073574198,2.93097,3411.9,3410.9,2.93174]
[1721073574358,2.93077,3412.1,3410.5,2.452]
[1721073574359,2.93127,3411.5,3410.5,2.452]
[1721073574695,2.93115,3411.7,3410.8,2.93184]
[1721073574910,2.93103,3411.8,3410.9,2.93175]
[1721073575057,10.3,3412.0,3411.1,2.9316]
[1721073575058,1.616195,3411.7,3411.1,2.9316]
[1721073575260,7.3,3412.0,3410.9,2.93176]
[1721073575487,2.93101,3411.8,3411.0,2.93167]
[1721073575805,10.23085,3412.0,3411.1,2.93159]
[1721073575806,7.3,3412.0,3411.1,2.93159]
[1721073576004,7.3,3412.0,3411.3,2.93137]
[1721073576300,16.79615,3412.5,3411.1,35.0]
[1721073576301,1.62615,3412.5,3411.1,35.0]
[1721073576502,7.3,3412.6,3411.2,8.22706562]
[1721073576651,7.3,3412.6,3411.5,2.93122]
[1721073576652,2.93056,3412.4,3411.5,2.93122]
[1721073576855,10.23034,3412.6,3411.5,2.93122]
[1721073576856,2.93058,3412.3,3411.5,2.93122]
[1721073577328,2.93058,3412.3,3411.2,8.22706562]
[1721073577329,2.93066,3412.2,3411.1,35.0]
[1721073577500,2.93084,3412.0,3411.1,2.93159]
[1721073577668,0.58615,3411.9,3411.2,2.93149]
[1721073577871,0.58615,3411.9,3411.1,2.93159]
[1721073578183,2.93051,3412.4,3411.1,2.93159]
[1721073578184,2.93075,3412.1,3411.1,2.93158]
[1721073578393,10.3,3412.6,3410.7,2.3097]
[1721073578394,2.93042,3412.5,3410.7,2.3097]
[1721073578609,10.3,3412.6,3410.7,5.6867]
[1721073578782,7.3,3412.6,3412.0,2.93081]
[1721073578981,7.3,3412.6,3411.9,2.93084]
[1721073578982,7.3,3413.1,3412.2,2.93065]
[1721073579220,8.58783827,3413.1,3412.3,2.93056]
[1721073579404,8.58783827,3413.1,3412.2,2.93065]
[1721073579606,2.92999,3413.0,3412.2,2.93065]
[1721073579805,8.58783827,3413.1,3412.2,2.93065]
[1721073580005,8.58783827,3413.1,3412.0,2.93082]
[1721073580225,4.09787383,3413.0,3412.0,2.93082]
[1721073580394,2.93014,3412.8,3411.6,2.4645]
[1721073580597,2.93014,3412.8,3412.0,2.93075]
[1721073580808,2.93035,3412.6,3411.8,2.93094]
[1721073581026,2.93014,3412.8,3411.9,2.93091]
[1721073581231,2.93024,3412.7,3411.9,2.93091]
[1721073581397,2.93024,3412.7,3411.8,2.931]
[1721073581583,2.93041,3412.5,3411.6,2.93114]
[1721073581787,2.93041,3412.5,3411.7,2.93106]
[1721073582025,2.9305,3412.4,3411.4,2.93132]
[1721073582339,6.93009938,3412.8,3411.2,2.93149]
[1721073582493,6.93009938,3412.8,3411.1,2.3156]
[1721073582494,2.93076,3412.1,3411.3,2.93143]
[1721073582689,2.93076,3412.1,3411.1,2.3156]
[1721073582690,7.3,3412.6,3411.7,2.93108]
[1721073582908,2.92995,3413.1,3411.1,37.3156]
[1721073582909,7.3,3413.1,3412.2,2.93064]
[1721073583115,4.16788383,3413.0,3412.2,2.93064]
[1721073583318,2.93001,3413.0,3412.2,2.93064]
[1721073583714,2.92986,3413.2,3412.3,2.93056]
[1721073583920,7.3,3413.5,3411.6,2.93111]
[1721073583921,7.3,3413.5,3412.6,2.93023]
[1721073584514,7.3,3413.5,3411.7,2.93101]
[1721073584515,7.3,3413.5,3413.0,2.9299]
[1721073584716,7.3,3413.5,3412.9,2.93005]
[1721073584717,0.30660275,3414.0,3413.1,2.92986]
[1721073584901,5.03851675,3414.0,3413.1,2.92986]
[1721073585292,2.10940675,3414.0,3413.2,2.92978]
[1721073585827,10.22905,3414.1,3413.2,2.92978]
[1721073585828,7.3,3414.1,3413.4,2.92961]
[1721073586800,7.3,3414.1,3413.1,2.92987]
[1721073586801,10.22906,3414.1,3413.1,2.92987]
[1721073587004,10.22906,3414.1,3413.2,2.92979]
[1721073587317,10.22906,3414.1,3413.3,2.9297]
[1721073587489,2.532792,3414.0,3413.1,2.92983]
[1721073587691,5.461932,3414.0,3413.1,2.92983]
[1721073588087,2.532792,3414.0,3413.3,2.9297]
[1721073588400,7.3,3414.1,3413.3,2.9297]
[1721073588904,0.30656485,3414.4,3412.7,2.4284]
[1721073589104,3.30656485,3414.4,3413.6,2.92939]
[1721073589438,3.30656485,3414.4,3413.7,2.92935]
[1721073589439,3.0,3414.4,3413.7,2.92935]
[1721073589727,7.3,3414.6,3413.2,3.377]
[1721073589930,7.3,3414.6,3414.0,2.92904]
[1721073590327,7.3,3414.6,3413.3,8.84702562]
[1721073590328,10.22863,3414.6,3413.5,2.92953]
[1721073590495,10.22863,3414.6,3413.5,2.92946]
[1721073590695,10.22863,3414.6,3413.3,5.91736562]
[1721073590696,7.3,3414.6,3413.7,2.92935]
[1721073591247,0.12187451,3414.9,3413.3,5.91736562]
[1721073591408,0.12187451,3414.9,3414.4,2.92874]
[1721073591605,0.12187451,3414.9,3414.4,2.92868]
[1721073592225,0.12187451,3414.9,3414.5,2.92866]
[1721073592743,0.12187451,3414.9,3414.7,2.92844]
[1721073594018,0.12187451,3414.9,3414.1,35.0]
[1721073594226,0.12187451,3414.9,3414.4,2.92869]
[1721073594413,0.86406196,3414.9,3413.8,2.92927]
[1721073594617,0.86406196,3414.9,3414.0,2.92911]
[1721073594618,2.3718,3414.8,3414.0,2.92911]
[1721073595098,2.3718,3414.8,3413.3,3.0]
[1721073595099,5.30023,3414.8,3413.9,2.92916]
[1721073595300,0.6164292,3414.7,3413.8,2.92926]
[1721073595658,0.6164292,3414.7,3412.8,3.377]
[1721073595659,2.9287,3414.5,3412.8,6.30711]
[1721073595944,2.92909,3414.1,3413.1,2.92987]
[1721073596098,2.92895,3414.2,3413.4,2.92956]
[1721073597242,3.091,3414.4,3413.0,2.92997]
[1721073597440,2.92911,3414.0,3412.4,2.2516]
[1721073597944,3.0,3413.9,3412.9,2.92998]
[1721073598118,3.0,3414.1,3413.1,2.92986]
[1721073598321,3.0,3414.1,3412.7,2.93022]
[1721073598509,2.9293,3413.8,3412.9,2.93004]
[1721073599420,5.92903,3414.1,3413.0,2.92996]
[1721073599763,5.92903,3414.1,3413.2,2.92976]
[1721073599943,3.0,3414.1,3413.2,0.585972]
[1721073600248,5.92895,3414.2,3413.2,2.92976]
[1721073600457,2.92903,3414.1,3413.2,2.92976]
[1721073600660,2.92924,3413.9,3412.7,2.93016]
[1721073600827,2.92903,3414.1,3412.5,2.93038]
[1721073601189,2.92903,3414.1,3412.9,2.93004]
[1721073601190,2.9292,3413.9,3412.9,2.93004]
[1721073601321,2.92903,3414.1,3412.6,3.0]
[1721073601322,3.0,3414.2,3413.3,2.92971]
[1721073601524,3.0,3414.2,3413.4,2.9296]
[1721073602026,7.3,3414.5,3413.8,2.92921]
[1721073602234,0.12187451,3414.9,3413.4,2.4244]
[1721073602437,0.12187451,3414.9,3414.2,2.92889]
[1721073602770,0.12187451,3414.9,3413.4,2.4244]
[1721073602771,2.92885,3414.4,3413.1,2.92987]
[1721073603050,2.92885,3414.4,3412.8,2.93012]
[1721073603051,2.92921,3413.9,3412.8,2.93014]
[1721073603238,2.92921,3413.9,3412.9,2.93005]
[1721073603443,2.92921,3413.9,3413.0,2.92995]
[1721073603614,2.92913,3414.0,3413.1,2.92984]
[1721073604052,2.92922,3413.9,3413.0,2.92995]
[1721073604231,2.92922,3413.9,3412.6,35.0]
[1721073604232,5.849436,3413.9,3412.8,2.93014]
[1721073604423,3.0,3414.2,3412.8,2.93014]
[1721073604424,5.556145,3414.3,3413.1,2.92988]
[1721073604651,2.92909,3414.1,3413.1,2.92988]
[1721073604954,2.92921,3413.9,3413.1,2.92988]
[1721073605165,3.091,3414.0,3412.6,35.0]
[1721073605463,2.92945,3413.6,3412.7,2.93022]
[1721073605763,2.92945,3413.6,3412.5,0.0213]
[1721073605931,2.92977,3413.3,3412.5,0.0213]
[1721073606122,2.92982,3413.2,3412.5,0.0213]
[1721073606668,2.92998,3413.0,3412.5,0.0213]
[1721073606871,2.93006,3412.9,3412.5,0.0213]
[1721073607035,2.93031,3412.6,3412.5,0.0213]
[1721073607221,5.86062,3412.6,3412.5,0.0213]
[1721073607420,6.41062,3412.6,3412.5,0.0213]
[1721073607634,9.41062,3412.6,3412.5,0.0213]
[1721073608142,6.48031,3412.6,3412.5,0.0213]
[1721073608912,19.1161868,3412.6,3412.5,0.0213]
[1721073609113,2.93106,3411.8,3410.9,2.93172]
[1721073609255,2.93048,3412.5,3410.7,10.33193]
[1721073609256,2.93109,3411.7,3410.7,2.93193]
[1721073609567,2.93083,3412.0,3410.9,2.93174]
[1721073609754,2.93091,3411.9,3410.9,2.93174]
[1721073609951,3.0,3411.8,3410.9,2.93174]
[1721073610302,2.9311,3411.7,3410.6,2.93203]
[1721073610503,5.93101,3411.8,3410.9,2.93177]
[1721073610797,7.3,3412.2,3410.6,3.377]
[1721073610973,7.3,3412.2,3411.4,2.93127]
[1721073610974,3.0,3412.1,3411.4,2.93127]
[1721073611991,3.0,3412.1,3411.6,2.93115]
[1721073612161,3.6842568,3412.6,3411.7,2.93102]
[1721073612162,4.2390768,3412.6,3411.7,2.93102]
[1721073612361,3.0,3412.5,3411.7,2.93102]
[1721073612561,5.93042,3412.5,3411.7,2.93102]
[1721073612758,5.93042,3412.5,3411.2,2.9315]
[1721073612961,5.93042,3412.5,3410.7,37.93187]
[1721073612962,2.93058,3412.3,3411.3,2.93135]
[1721073613195,3.091,3412.2,3411.0,2.93168]
[1721073613393,3.48082,3412.1,3411.0,2.93161]
[1721073613698,8.38067,3412.2,3411.0,2.93161]
[1721073613699,5.28967,3412.2,3411.3,2.93141]
[1721073614258,4.38440768,3412.4,3411.5,2.93125]
[1721073614259,1.45391768,3412.4,3411.5,2.93125]
[1721073614615,3.0,3412.5,3411.5,0.293125]
[1721073614759,10.22989,3413.1,3412.0,2.93076]
[1721073614954,2.92997,3413.0,3412.2,2.93059]
[1721073615197,2.93006,3412.9,3411.7,35.0]
[1721073615368,2.93024,3412.7,3411.7,35.0]
[1721073615695,0.58603,3412.6,3411.7,35.0]
[1721073615897,2.93051,3412.4,3411.7,35.0]
[1721073616096,2.93057,3412.3,3411.7,35.0]
[1721073616995,3.51634,3412.6,3411.7,35.0]
[1721073617303,2.93059,3412.3,3411.7,35.0]
[1721073617504,2.93066,3412.2,3411.2,2.93151]
[1721073617707,2.93066,3412.2,3411.3,2.93142]
[1721073617876,2.93066,3412.2,3410.9,2.2776]
[1721073617877,2.93066,3412.2,3411.2,2.9315]
[1721073618083,2.93066,3412.2,3411.4,35.0]
[1721073618282,3.51635,3412.6,3411.7,2.93107]
[1721073618605,2.93041,3412.5,3411.7,2.93107]
[1721073618843,2.93085,3412.0,3410.9,5.20933]
[1721073619053,2.93067,3412.2,3411.3,2.93137]
[1721073619404,2.93067,3412.2,3411.3,37.93137]
[1721073619602,2.93067,3412.2,3411.4,2.93133]
[1721073619957,3.58603,3412.6,3411.5,0.05862012]
[1721073619958,3.0,3412.6,3411.5,0.05862012]
[1721073620098,10.09417826,3413.6,3411.9,3.377]
[1721073620297,10.68909826,3413.6,3412.8,2.93011]
[1721073620550,2.92952,3413.6,3412.8,2.93011]
[1721073620899,3.23603699,3413.6,3412.5,5.39552]
[1721073621103,3.86874069,3413.6,3412.5,5.935072]
[1721073621335,3.86874069,3413.6,3412.6,35.0]
[1721073621515,3.86874069,3413.6,3412.9,2.93]
[1721073621516,0.30657699,3413.6,3412.9,2.93]
[1721073621696,0.30657699,3413.6,3412.6,35.0]
[1721073621697,0.30657699,3413.6,3413.0,2.92997]
[1721073621898,12.17,3414.2,3412.5,3.004752]
[1721073621899,9.5845,3414.6,3412.5,3.004752]
[1721073622142,0.12187451,3414.9,3413.6,2.92944]
[1721073622452,0.12187451,3414.9,3413.9,2.92919]
[1721073622751,0.12187451,3414.9,3413.1,35.0]
[1721073622752,2.92878,3414.4,3413.3,2.92963]
[1721073623034,2.92878,3414.4,3412.9,3.377]
[1721073623035,2.92877,3414.4,3413.5,2.92946]
[1721073623197,2.92852,3414.7,3413.8,2.92921]
[1721073623715,2.92852,3414.7,3413.9,2.92918]
[1721073624029,2.92852,3414.7,3413.6,37.92943]
[1721073624215,0.12187451,3414.9,3413.8,2.3365]
[1721073624411,0.12187451,3414.9,3414.5,2.92868]
[1721073625328,0.12187451,3414.9,3413.8,8.7135]
[1721073625329,0.12187451,3414.9,3413.8,5.26578]
[1721073625532,0.12187451,3414.9,3413.8,2.3365]
[1721073625844,2.92853,3414.7,3413.5,2.92953]
[1721073626000,0.30504045,3414.6,3413.5,3.522483]
[1721073626398,0.12187451,3414.9,3414.4,2.92875]
[1721073626630,0.12187451,3414.9,3413.9,2.92916]
[1721073626851,0.12187451,3414.9,3413.6,6.30641]
[1721073626852,0.12187451,3414.9,3414.2,2.92893]
[1721073627004,0.12187451,3414.9,3414.7,2.92844]
[1721073627907,0.12187451,3414.9,3413.6,3.377]
[1721073628226,0.12187451,3414.9,3414.5,2.92866]
[1721073628544,0.12187451,3414.9,3414.8,2.92842]
[1721073628749,0.12187451,3414.9,3414.8,5.91539793]
[1721073628903,7.3,3415.8,3414.7,2.9285]
[1721073628904,7.3,3415.8,3415.4,2.92789]
[1721073629098,2.92708,3416.4,3415.4,2.92789]